[Event "Titled Tuesday Blitz October 31 Late 2023"]
[White "Avazkhonov, Alikhon"]
[Black "Szente Varga, Fruzsina"]
[WhiteFideId "14208504"]
[BlackFideId "712264"]
[WhiteElo "2527"]
[BlackElo "2332"]
[Result "1-0"]
[Round "9"]
[TimeControl "180+1"]
[Date "2023.10.31"]
[WhiteClock "0:00:27"]
[BlackClock "0:00:08"]
[Board "67"]

1. d4 {[%clk 0:02:51]}  Nf6 {[%clk 0:02:59]} 2. c4 {[%clk 0:02:50]}  g6 {[%clk 0:02:59]} 3. Nc3 {[%clk 0:02:51]}  Bg7 {[%clk 0:02:59]} 4. e4 {[%clk 0:02:51]}  d6 {[%clk 0:02:59]} 5. Be2 {[%clk 0:02:52]}  O-O {[%clk 0:02:59]} 6. Be3 {[%clk 0:02:51]}  e5 {[%clk 0:02:51]} 7. d5 {[%clk 0:02:51]}  Nbd7 {[%clk 0:02:50]} 8. g4 {[%clk 0:02:51]}  Nc5 {[%clk 0:02:50]} 9. f3 {[%clk 0:02:48]}  a5 {[%clk 0:02:49]} 10. h4 {[%clk 0:02:47]}  Nfd7 {[%clk 0:02:32]} 11. Qd2 {[%clk 0:02:44]}  Nb6 {[%clk 0:02:12]} 12. h5 {[%clk 0:02:18]}  Qe7 {[%clk 0:01:49]} 13. Nh3 {[%clk 0:02:16]}  f6 {[%clk 0:01:46]} 14. Nf2 {[%clk 0:02:15]}  g5 {[%clk 0:01:34]} 15. h6 {[%clk 0:01:54]}  Bh8 {[%clk 0:01:34]} 16. O-O-O {[%clk 0:01:54]}  Nba4 {[%clk 0:01:34]} 17. Nb5 {[%clk 0:01:46]}  Rf7 {[%clk 0:01:13]} 18. b3 {[%clk 0:01:38]}  Nb6 {[%clk 0:01:12]} 19. Bxc5 {[%clk 0:01:38]}  dxc5 {[%clk 0:01:10]} 20. d6 {[%clk 0:01:39]}  cxd6 {[%clk 0:01:11]} 21. Qxd6 {[%clk 0:01:40]}  Qxd6 {[%clk 0:00:37]} 22. Rxd6 {[%clk 0:01:41]}  Nd7 {[%clk 0:00:34]} 23. Rhd1 {[%clk 0:01:30]}  Nf8 {[%clk 0:00:34]} 24. Rd8 {[%clk 0:01:28]}  b6 {[%clk 0:00:31]} 25. Nd6 {[%clk 0:01:28]}  Rc7 {[%clk 0:00:31]} 26. Ne8 {[%clk 0:01:22]}  Rca7 {[%clk 0:00:28]} 27. R1d6 {[%clk 0:01:19]}  a4 {[%clk 0:00:25]} 28. Nxf6+ {[%clk 0:01:17]}  Kf7 {[%clk 0:00:21]} 29. Nxh7 {[%clk 0:00:32]}  Nxh7 {[%clk 0:00:19]} 30. Rxh8 {[%clk 0:00:32]}  axb3 {[%clk 0:00:18]} 31. Rxh7+ {[%clk 0:00:30]}  Kg8 {[%clk 0:00:18]} 32. Rxa7 {[%clk 0:00:29]}  Rxa7 {[%clk 0:00:18]} 33. axb3 {[%clk 0:00:30]}  Bd7 {[%clk 0:00:08]} 34. Nd3 {[%clk 0:00:27]} 1-0


[Site "https://www.chess.com"]

[Event "Titled Tuesday Blitz October 31 Late 2023"]
[White "Curtis, John"]
[Black "Molenda, Marcin"]
[WhiteFideId "3200256"]
[BlackFideId "1173065"]
[WhiteElo "2190"]
[BlackElo "2493"]
[Result "0-1"]
[Round "9"]
[TimeControl "180+1"]
[Date "2023.10.31"]
[WhiteClock "0:00:21"]
[BlackClock "0:00:24"]
[Board "70"]

1. c4 {[%clk 0:02:44]}  g6 {[%clk 0:02:57]} 2. g3 {[%clk 0:02:44]}  Bg7 {[%clk 0:02:57]} 3. Bg2 {[%clk 0:02:44]}  Nf6 {[%clk 0:02:57]} 4. Nf3 {[%clk 0:02:44]}  O-O {[%clk 0:02:57]} 5. O-O {[%clk 0:02:45]}  d6 {[%clk 0:02:58]} 6. Nc3 {[%clk 0:02:45]}  e5 {[%clk 0:02:58]} 7. d4 {[%clk 0:02:45]}  exd4 {[%clk 0:02:36]} 8. Nxd4 {[%clk 0:02:45]}  Nbd7 {[%clk 0:02:37]} 9. b3 {[%clk 0:02:44]}  Nc5 {[%clk 0:02:37]} 10. Bb2 {[%clk 0:02:44]}  a6 {[%clk 0:02:33]} 11. Qd2 {[%clk 0:02:44]}  Re8 {[%clk 0:02:34]} 12. f3 {[%clk 0:02:44]}  Ne6 {[%clk 0:02:26]} 13. Nxe6 {[%clk 0:02:43]}  Bxe6 {[%clk 0:02:26]} 14. e4 {[%clk 0:02:43]}  Nd7 {[%clk 0:02:23]} 15. Rac1 {[%clk 0:02:38]}  a5 {[%clk 0:02:22]} 16. Nd5 {[%clk 0:02:37]}  Bxd5 {[%clk 0:02:22]} 17. Bxg7 {[%clk 0:02:36]}  Kxg7 {[%clk 0:02:22]} 18. exd5 {[%clk 0:02:21]}  Qf6 {[%clk 0:02:13]} 19. f4 {[%clk 0:02:10]}  Nc5 {[%clk 0:02:11]} 20. Rfe1 {[%clk 0:02:06]}  h5 {[%clk 0:02:09]} 21. h4 {[%clk 0:01:56]}  b6 {[%clk 0:02:08]} 22. Kh2 {[%clk 0:01:55]}  Qf5 {[%clk 0:01:58]} 23. Rcd1 {[%clk 0:01:21]}  Qf6 {[%clk 0:01:36]} 24. Re3 {[%clk 0:01:10]}  Kf8 {[%clk 0:01:31]} 25. Rde1 {[%clk 0:01:09]}  Rxe3 {[%clk 0:01:17]} 26. Qxe3 {[%clk 0:01:09]}  Kg7 {[%clk 0:01:11]} 27. Re2 {[%clk 0:00:58]}  Rd8 {[%clk 0:01:09]} 28. Bh3 {[%clk 0:00:55]}  Rf8 {[%clk 0:00:57]} 29. Rf2 {[%clk 0:00:52]}  Qa1 {[%clk 0:00:51]} 30. Re2 {[%clk 0:00:52]}  f5 {[%clk 0:00:42]} 31. Bg2 {[%clk 0:00:43]}  Qf6 {[%clk 0:00:41]} 32. Qd2 {[%clk 0:00:40]}  Rf7 {[%clk 0:00:40]} 33. Qe1 {[%clk 0:00:39]}  Qd4 {[%clk 0:00:30]} 34. Re7 {[%clk 0:00:31]}  Ne4 {[%clk 0:00:24]} 35. Rxf7+ {[%clk 0:00:29]}  Kxf7 {[%clk 0:00:25]} 36. Bxe4 {[%clk 0:00:29]}  fxe4 {[%clk 0:00:24]} 37. Qe2 {[%clk 0:00:22]}  Kf6 {[%clk 0:00:24]} 38. Kg2 {[%clk 0:00:22]}  Kf5 {[%clk 0:00:24]} 39. g4+ {[%clk 0:00:23]}  hxg4 {[%clk 0:00:24]} 40. Kg3 {[%clk 0:00:23]}  Qd3+ {[%clk 0:00:24]} 41. Qe3 {[%clk 0:00:21]}  Qxe3+ {[%clk 0:00:24]} 0-1


[Site "https://www.chess.com"]

[Event "Titled Tuesday Blitz October 31 Late 2023"]
[White "Ardelean, George-Catalin"]
[Black "hristos03"]
[WhiteFideId "1207091"]
[WhiteElo "2716"]
[BlackElo "2434"]
[Result "1-0"]
[Round "9"]
[TimeControl "180+1"]
[Date "2023.10.31"]
[WhiteClock "0:00:14"]
[BlackClock "0:00:00"]
[Board "71"]

1. d4 {[%clk 0:03:00]}  Nf6 {[%clk 0:02:58]} 2. Bf4 {[%clk 0:03:00]}  e6 {[%clk 0:02:55]} 3. e3 {[%clk 0:02:59]}  c5 {[%clk 0:02:51]} 4. Nc3 {[%clk 0:02:58]}  d5 {[%clk 0:02:37]} 5. Nb5 {[%clk 0:02:57]}  Na6 {[%clk 0:02:36]} 6. c3 {[%clk 0:02:56]}  Be7 {[%clk 0:02:27]} 7. a4 {[%clk 0:02:50]}  O-O {[%clk 0:02:24]} 8. g4 {[%clk 0:02:50]}  Nxg4 {[%clk 0:01:55]} 9. Qxg4 {[%clk 0:02:40]}  e5 {[%clk 0:01:54]} 10. Qg3 {[%clk 0:02:40]}  exf4 {[%clk 0:01:51]} 11. Qxf4 {[%clk 0:02:41]}  cxd4 {[%clk 0:01:37]} 12. exd4 {[%clk 0:02:19]}  Bg5 {[%clk 0:01:36]} 13. Qg3 {[%clk 0:02:18]}  Bh4 {[%clk 0:01:29]} 14. Qg2 {[%clk 0:02:15]}  Re8+ {[%clk 0:01:24]} 15. Be2 {[%clk 0:02:12]}  Bf5 {[%clk 0:01:23]} 16. Kf1 {[%clk 0:01:59]}  Qd7 {[%clk 0:01:00]} 17. h3 {[%clk 0:01:58]}  Re6 {[%clk 0:00:54]} 18. Nf3 {[%clk 0:01:47]}  Rae8 {[%clk 0:00:36]} 19. Ne5 {[%clk 0:01:28]}  Qd8 {[%clk 0:00:24]} 20. Rg1 {[%clk 0:01:11]}  g6 {[%clk 0:00:20]} 21. Qf3 {[%clk 0:01:01]}  Qf6 {[%clk 0:00:11]} 22. Rg2 {[%clk 0:00:42]}  Be4 {[%clk 0:00:09]} 23. Qe3 {[%clk 0:00:31]}  Bxg2+ {[%clk 0:00:09]} 24. Kxg2 {[%clk 0:00:32]}  Qg5+ {[%clk 0:00:08]} 25. Qxg5 {[%clk 0:00:31]}  Bxg5 {[%clk 0:00:09]} 26. Bg4 {[%clk 0:00:29]}  f5 {[%clk 0:00:09]} 27. Bf3 {[%clk 0:00:26]}  Rd8 {[%clk 0:00:05]} 28. Nxa7 {[%clk 0:00:24]}  Bf6 {[%clk 0:00:05]} 29. Nd3 {[%clk 0:00:24]}  Kg7 {[%clk 0:00:03]} 30. Nb5 {[%clk 0:00:24]}  Ree8 {[%clk 0:00:01]} 31. Nf4 {[%clk 0:00:24]}  g5 {[%clk 0:00:01]} 32. Nh5+ {[%clk 0:00:18]}  Kg6 {[%clk 0:00:01]} 33. Ng3 {[%clk 0:00:19]}  Kg7 {[%clk 0:00:01]} 34. Nxf5+ {[%clk 0:00:18]}  Kg6 {[%clk 0:00:01]} 35. Ne3 {[%clk 0:00:18]}  h5 {[%clk 0:00:00]} 36. Rg1 {[%clk 0:00:14]} 1-0


[Site "https://www.chess.com"]

[Event "Titled Tuesday Blitz October 31 Late 2023"]
[White "Spichkin, Alexander"]
[Black "Olsen, Filip Boe"]
[WhiteFideId "4144074"]
[BlackFideId "1440640"]
[WhiteElo "2425"]
[BlackElo "2632"]
[Result "1/2-1/2"]
[Round "9"]
[TimeControl "180+1"]
[Date "2023.10.31"]
[WhiteClock "0:00:20"]
[BlackClock "0:01:00"]
[Board "72"]

1. f4 {[%clk 0:01:46]}  d5 {[%clk 0:02:56]} 2. Nf3 {[%clk 0:01:45]}  Nf6 {[%clk 0:02:56]} 3. e3 {[%clk 0:01:46]}  Bf5 {[%clk 0:02:53]} 4. Be2 {[%clk 0:01:46]}  e6 {[%clk 0:02:53]} 5. O-O {[%clk 0:01:46]}  c5 {[%clk 0:02:54]} 6. b3 {[%clk 0:01:47]}  Nc6 {[%clk 0:02:53]} 7. Bb2 {[%clk 0:01:47]}  Be7 {[%clk 0:02:54]} 8. Bb5 {[%clk 0:01:47]}  O-O {[%clk 0:02:47]} 9. Bxc6 {[%clk 0:01:47]}  bxc6 {[%clk 0:02:48]} 10. Ne5 {[%clk 0:01:47]}  Qb6 {[%clk 0:02:45]} 11. Nc3 {[%clk 0:01:45]}  c4 {[%clk 0:02:43]} 12. Na4 {[%clk 0:01:45]}  Qb7 {[%clk 0:02:41]} 13. Qc1 {[%clk 0:01:41]}  cxb3 {[%clk 0:02:33]} 14. cxb3 {[%clk 0:01:35]}  Rac8 {[%clk 0:02:18]} 15. Nc5 {[%clk 0:01:34]}  Bxc5 {[%clk 0:02:12]} 16. Qxc5 {[%clk 0:01:34]}  Ne4 {[%clk 0:02:12]} 17. Qc1 {[%clk 0:01:35]}  c5 {[%clk 0:02:13]} 18. d3 {[%clk 0:01:34]}  Nf6 {[%clk 0:02:10]} 19. h3 {[%clk 0:01:31]}  Nd7 {[%clk 0:02:06]} 20. Nxd7 {[%clk 0:01:26]}  Qxd7 {[%clk 0:02:07]} 21. Qd2 {[%clk 0:01:25]}  Qb5 {[%clk 0:02:06]} 22. Rad1 {[%clk 0:01:25]}  c4 {[%clk 0:02:06]} 23. bxc4 {[%clk 0:01:08]}  dxc4 {[%clk 0:02:07]} 24. e4 {[%clk 0:01:09]}  Bg6 {[%clk 0:01:56]} 25. Rb1 {[%clk 0:00:39]}  Qc5+ {[%clk 0:01:45]} 26. d4 {[%clk 0:00:39]}  c3 {[%clk 0:01:46]} 27. dxc5 {[%clk 0:00:37]}  cxd2 {[%clk 0:01:46]} 28. f5 {[%clk 0:00:37]}  exf5 {[%clk 0:01:29]} 29. exf5 {[%clk 0:00:37]}  Bh5 {[%clk 0:01:30]} 30. g4 {[%clk 0:00:36]}  Rfd8 {[%clk 0:01:27]} 31. Ba3 {[%clk 0:00:34]}  Rd3 {[%clk 0:01:27]} 32. Bb4 {[%clk 0:00:29]}  a5 {[%clk 0:01:27]} 33. Bxa5 {[%clk 0:00:27]}  f6 {[%clk 0:01:15]} 34. gxh5 {[%clk 0:00:27]}  Rxc5 {[%clk 0:01:14]} 35. Bb4 {[%clk 0:00:17]}  Rc4 {[%clk 0:01:09]} 36. a3 {[%clk 0:00:18]}  Rh4 {[%clk 0:01:04]} 37. Kg2 {[%clk 0:00:18]}  Rhxh3 {[%clk 0:01:04]} 38. Rbd1 {[%clk 0:00:18]}  Rhg3+ {[%clk 0:01:04]} 39. Kf2 {[%clk 0:00:18]}  Rgf3+ {[%clk 0:01:03]} 40. Kg1 {[%clk 0:00:19]}  Rg3+ {[%clk 0:01:02]} 41. Kh2 {[%clk 0:00:19]}  Rh3+ {[%clk 0:01:01]} 42. Kg2 {[%clk 0:00:20]}  Rhg3+ {[%clk 0:00:59]} 43. Kh2 {[%clk 0:00:20]}  Rh3+ {[%clk 0:01:00]} 44. Kg2 {[%clk 0:00:20]} 1/2-1/2


[Site "https://www.chess.com"]

[Event "Titled Tuesday Blitz October 31 Late 2023"]
[White "Martinez Reyes, Pedro Ramon"]
[Black "Kawuma, Patrick"]
[WhiteFideId "3901807"]
[BlackFideId "10000127"]
[WhiteElo "2613"]
[BlackElo "2415"]
[Result "1-0"]
[Round "9"]
[TimeControl "180+1"]
[Date "2023.10.31"]
[WhiteClock "0:02:08"]
[BlackClock "0:00:00"]
[Board "73"]

1. d4 {[%clk 0:02:58]}  Nf6 {[%clk 0:02:59]} 2. c4 {[%clk 0:02:58]}  c5 {[%clk 0:03:00]} 3. d5 {[%clk 0:02:57]}  b5 {[%clk 0:02:56]} 4. cxb5 {[%clk 0:02:57]}  a6 {[%clk 0:02:56]} 5. b6 {[%clk 0:02:58]}  d6 {[%clk 0:02:55]} 6. Nc3 {[%clk 0:02:59]}  Nbd7 {[%clk 0:02:56]} 7. e4 {[%clk 0:02:59]}  Rb8 {[%clk 0:02:55]} 8. a4 {[%clk 0:02:59]}  Rxb6 {[%clk 0:02:55]} 9. Nf3 {[%clk 0:03:00]}  g6 {[%clk 0:02:55]} 10. Nd2 {[%clk 0:03:01]}  Bg7 {[%clk 0:02:54]} 11. Bd3 {[%clk 0:03:01]}  O-O {[%clk 0:02:53]} 12. O-O {[%clk 0:03:02]}  Ne5 {[%clk 0:02:53]} 13. Be2 {[%clk 0:03:00]}  Rb4 {[%clk 0:02:32]} 14. Qc2 {[%clk 0:02:59]}  Bg4 {[%clk 0:02:15]} 15. f3 {[%clk 0:02:59]}  Bd7 {[%clk 0:02:12]} 16. b3 {[%clk 0:02:59]}  Qb6 {[%clk 0:02:05]} 17. Kh1 {[%clk 0:02:48]}  Nh5 {[%clk 0:01:56]} 18. Nc4 {[%clk 0:02:44]}  Nxc4 {[%clk 0:01:53]} 19. Bxc4 {[%clk 0:02:45]}  Qd8 {[%clk 0:01:22]} 20. Ba3 {[%clk 0:02:43]}  Rb6 {[%clk 0:01:21]} 21. Rae1 {[%clk 0:02:39]}  e6 {[%clk 0:01:20]} 22. Qd3 {[%clk 0:02:36]}  Qh4 {[%clk 0:01:19]} 23. f4 {[%clk 0:02:30]}  Nxf4 {[%clk 0:01:06]} 24. Qe3 {[%clk 0:02:30]}  Nh5 {[%clk 0:00:32]} 25. dxe6 {[%clk 0:02:28]}  fxe6 {[%clk 0:00:30]} 26. Rxf8+ {[%clk 0:02:29]}  Bxf8 {[%clk 0:00:28]} 27. Rf1 {[%clk 0:02:30]}  Bg7 {[%clk 0:00:26]} 28. Qf3 {[%clk 0:02:28]}  Be8 {[%clk 0:00:25]} 29. Bxe6+ {[%clk 0:02:27]}  Kh8 {[%clk 0:00:25]} 30. Nd5 {[%clk 0:02:24]}  Rb7 {[%clk 0:00:23]} 31. Bb2 {[%clk 0:02:16]}  h6 {[%clk 0:00:00]} 32. Qf8+ {[%clk 0:02:08]} 1-0


[Site "https://www.chess.com"]

[Event "Titled Tuesday Blitz October 31 Late 2023"]
[White "balachess2006"]
[Black "Pinto, Daniel"]
[BlackFideId "3303144"]
[WhiteElo "2568"]
[BlackElo "2415"]
[Result "1-0"]
[Round "9"]
[TimeControl "180+1"]
[Date "2023.10.31"]
[WhiteClock "0:01:56"]
[BlackClock "0:00:00"]
[Board "74"]

1. Nf3 {[%clk 0:03:00]}  Nf6 {[%clk 0:02:56]} 2. c4 {[%clk 0:03:00]}  g6 {[%clk 0:02:53]} 3. d4 {[%clk 0:03:00]}  Bg7 {[%clk 0:02:54]} 4. g3 {[%clk 0:03:00]}  O-O {[%clk 0:02:54]} 5. Bg2 {[%clk 0:03:01]}  c5 {[%clk 0:02:53]} 6. Nc3 {[%clk 0:02:59]}  d6 {[%clk 0:02:48]} 7. O-O {[%clk 0:02:58]}  Nc6 {[%clk 0:02:48]} 8. dxc5 {[%clk 0:02:58]}  dxc5 {[%clk 0:02:47]} 9. Bf4 {[%clk 0:02:59]}  Nh5 {[%clk 0:02:42]} 10. Be3 {[%clk 0:02:53]}  Nd4 {[%clk 0:02:38]} 11. Rc1 {[%clk 0:02:48]}  e5 {[%clk 0:02:11]} 12. Nd5 {[%clk 0:02:46]}  Be6 {[%clk 0:02:06]} 13. Ng5 {[%clk 0:02:47]}  Rc8 {[%clk 0:01:54]} 14. Nxe6 {[%clk 0:02:41]}  fxe6 {[%clk 0:01:49]} 15. Nc3 {[%clk 0:02:41]}  b6 {[%clk 0:01:49]} 16. b3 {[%clk 0:02:40]}  h6 {[%clk 0:01:30]} 17. Qd2 {[%clk 0:02:36]}  Nf5 {[%clk 0:01:29]} 18. Ne4 {[%clk 0:02:29]}  Qe7 {[%clk 0:00:57]} 19. Qc3 {[%clk 0:02:20]}  Nd4 {[%clk 0:00:49]} 20. Rce1 {[%clk 0:02:19]}  g5 {[%clk 0:00:40]} 21. Bc1 {[%clk 0:02:18]}  Rcd8 {[%clk 0:00:36]} 22. e3 {[%clk 0:02:18]}  Nf3+ {[%clk 0:00:36]} 23. Bxf3 {[%clk 0:02:17]}  Rxf3 {[%clk 0:00:37]} 24. Rd1 {[%clk 0:02:17]}  Rdf8 {[%clk 0:00:34]} 25. Qd3 {[%clk 0:02:17]}  Nf6 {[%clk 0:00:30]} 26. Nxf6+ {[%clk 0:02:17]}  Qxf6 {[%clk 0:00:30]} 27. Qe2 {[%clk 0:02:12]}  e4 {[%clk 0:00:30]} 28. Rd2 {[%clk 0:02:12]}  Qf5 {[%clk 0:00:16]} 29. Bb2 {[%clk 0:02:11]}  Bxb2 {[%clk 0:00:15]} 30. Rxb2 {[%clk 0:02:12]}  Qh3 {[%clk 0:00:13]} 31. Rd1 {[%clk 0:02:07]}  g4 {[%clk 0:00:13]} 32. Qf1 {[%clk 0:02:06]}  Qxf1+ {[%clk 0:00:10]} 33. Rxf1 {[%clk 0:02:07]}  Rd8 {[%clk 0:00:11]} 34. Re1 {[%clk 0:02:02]}  Rf5 {[%clk 0:00:10]} 35. Kf1 {[%clk 0:02:02]}  Kf7 {[%clk 0:00:09]} 36. Ke2 {[%clk 0:02:02]}  Ke7 {[%clk 0:00:10]} 37. Rf1 {[%clk 0:02:00]}  Rff8 {[%clk 0:00:08]} 38. Rd2 {[%clk 0:01:59]}  Rxd2+ {[%clk 0:00:09]} 39. Kxd2 {[%clk 0:02:00]}  Rd8+ {[%clk 0:00:09]} 40. Ke2 {[%clk 0:02:00]}  a6 {[%clk 0:00:10]} 41. Rh1 {[%clk 0:02:01]}  h5 {[%clk 0:00:06]} 42. h3 {[%clk 0:02:01]}  gxh3 {[%clk 0:00:01]} 43. Rxh3 {[%clk 0:02:02]}  Rh8 {[%clk 0:00:02]} 44. Rh4 {[%clk 0:02:02]}  Kf6 {[%clk 0:00:03]} 45. Rxe4 {[%clk 0:02:02]}  Kf5 {[%clk 0:00:04]} 46. Rh4 {[%clk 0:02:02]}  e5 {[%clk 0:00:04]} 47. e4+ {[%clk 0:02:02]}  Kg5 {[%clk 0:00:04]} 48. Rh1 {[%clk 0:02:00]}  Rd8 {[%clk 0:00:03]} 49. f3 {[%clk 0:01:59]}  Rh8 {[%clk 0:00:01]} 50. Ke3 {[%clk 0:01:58]}  b5 {[%clk 0:00:02]} 51. f4+ {[%clk 0:01:58]}  exf4+ {[%clk 0:00:02]} 52. gxf4+ {[%clk 0:01:59]}  Kg4 {[%clk 0:00:02]} 53. Rg1+ {[%clk 0:01:59]}  Kh3 {[%clk 0:00:03]} 54. e5 {[%clk 0:01:59]}  h4 {[%clk 0:00:03]} 55. e6 {[%clk 0:01:59]}  Kh2 {[%clk 0:00:04]} 56. Rg6 {[%clk 0:01:58]}  h3 {[%clk 0:00:04]} 57. f5 {[%clk 0:01:59]}  Kh1 {[%clk 0:00:04]} 58. f6 {[%clk 0:01:58]}  h2 {[%clk 0:00:04]} 59. f7 {[%clk 0:01:58]}  Rh3+ {[%clk 0:00:05]} 60. Kf2 {[%clk 0:01:58]}  bxc4 {[%clk 0:00:05]} 61. bxc4 {[%clk 0:01:57]}  Ra3 {[%clk 0:00:04]} 62. Rh6 {[%clk 0:01:57]}  Rxa2+ {[%clk 0:00:05]} 63. Ke3 {[%clk 0:01:58]}  Ra3+ {[%clk 0:00:05]} 64. Ke4 {[%clk 0:01:57]}  Kg1 {[%clk 0:00:00]} 65. Rxh2 {[%clk 0:01:56]} 1-0


[Site "https://www.chess.com"]

[Event "Titled Tuesday Blitz October 31 Late 2023"]
[White "Fernandez, Maria Florencia"]
[Black "Bilan, Danila"]
[WhiteFideId "116459"]
[BlackFideId "24161918"]
[WhiteElo "2336"]
[BlackElo "2462"]
[Result "0-1"]
[Round "9"]
[TimeControl "180+1"]
[Date "2023.10.31"]
[WhiteClock "0:00:02"]
[BlackClock "0:00:25"]
[Board "78"]

1. d4 {[%clk 0:03:00]}  d5 {[%clk 0:02:48]} 2. c4 {[%clk 0:02:59]}  c6 {[%clk 0:02:47]} 3. Nc3 {[%clk 0:02:54]}  Nf6 {[%clk 0:02:39]} 4. Nf3 {[%clk 0:02:53]}  e6 {[%clk 0:02:39]} 5. e3 {[%clk 0:02:46]}  Nbd7 {[%clk 0:02:39]} 6. Qc2 {[%clk 0:02:39]}  Bd6 {[%clk 0:02:38]} 7. b3 {[%clk 0:02:37]}  O-O {[%clk 0:02:33]} 8. Bb2 {[%clk 0:02:35]}  Qe7 {[%clk 0:02:33]} 9. Be2 {[%clk 0:02:30]}  dxc4 {[%clk 0:02:31]} 10. bxc4 {[%clk 0:02:28]}  e5 {[%clk 0:02:32]} 11. O-O {[%clk 0:02:22]}  e4 {[%clk 0:02:24]} 12. Nd2 {[%clk 0:02:06]}  Re8 {[%clk 0:02:23]} 13. Rae1 {[%clk 0:01:57]}  c5 {[%clk 0:02:12]} 14. d5 {[%clk 0:01:41]}  Nf8 {[%clk 0:01:49]} 15. f3 {[%clk 0:01:26]}  exf3 {[%clk 0:01:42]} 16. Bxf3 {[%clk 0:01:23]}  Ng6 {[%clk 0:01:29]} 17. Nde4 {[%clk 0:00:55]}  Nxe4 {[%clk 0:01:21]} 18. Qxe4 {[%clk 0:00:35]}  Bxh2+ {[%clk 0:01:07]} 19. Kh1 {[%clk 0:00:24]}  Qd8 {[%clk 0:01:04]} 20. Qc2 {[%clk 0:00:14]}  Bg3 {[%clk 0:01:04]} 21. Rf2 {[%clk 0:00:07]}  Qh4+ {[%clk 0:00:35]} 22. Kg1 {[%clk 0:00:08]}  Nf4 {[%clk 0:00:25]} 23. Rd1 {[%clk 0:00:02]}  Qh2+ {[%clk 0:00:24]} 24. Kf1 {[%clk 0:00:02]}  Qh1# {[%clk 0:00:25]} 0-1


[Site "https://www.chess.com"]

[Event "Titled Tuesday Blitz October 31 Late 2023"]
[White "Harriott, Tyrell"]
[Black "Rakitic2010"]
[WhiteFideId "2086484"]
[WhiteElo "2327"]
[BlackElo "2458"]
[Result "0-1"]
[Round "9"]
[TimeControl "180+1"]
[Date "2023.10.31"]
[WhiteClock "0:00:00"]
[BlackClock "0:00:44"]
[Board "79"]

1. d4 {[%clk 0:02:58]}  Nf6 {[%clk 0:02:59]} 2. e3 {[%clk 0:02:58]}  e6 {[%clk 0:02:58]} 3. Bd3 {[%clk 0:02:59]}  d5 {[%clk 0:02:58]} 4. f4 {[%clk 0:02:59]}  c5 {[%clk 0:02:56]} 5. c3 {[%clk 0:02:59]}  Nc6 {[%clk 0:02:54]} 6. Nf3 {[%clk 0:02:58]}  Bd6 {[%clk 0:02:54]} 7. Ne5 {[%clk 0:02:57]}  O-O {[%clk 0:02:51]} 8. Nd2 {[%clk 0:02:56]}  Ne7 {[%clk 0:02:48]} 9. Qf3 {[%clk 0:02:55]}  b5 {[%clk 0:02:39]} 10. Bxb5 {[%clk 0:02:50]}  Bb7 {[%clk 0:02:31]} 11. Bd3 {[%clk 0:02:48]}  Nf5 {[%clk 0:02:27]} 12. g4 {[%clk 0:02:41]}  Nh4 {[%clk 0:02:24]} 13. Qh3 {[%clk 0:02:30]}  Ne4 {[%clk 0:02:22]} 14. Nxe4 {[%clk 0:01:38]}  dxe4 {[%clk 0:02:20]} 15. Be2 {[%clk 0:01:36]}  cxd4 {[%clk 0:02:16]} 16. exd4 {[%clk 0:01:35]}  Bxe5 {[%clk 0:02:14]} 17. fxe5 {[%clk 0:01:33]}  Nf3+ {[%clk 0:02:10]} 18. Kf2 {[%clk 0:01:13]}  f6 {[%clk 0:02:06]} 19. exf6 {[%clk 0:01:06]}  Rxf6 {[%clk 0:02:00]} 20. Ke3 {[%clk 0:00:46]}  e5 {[%clk 0:01:49]} 21. Bc4+ {[%clk 0:00:39]}  Kh8 {[%clk 0:01:44]} 22. Rd1 {[%clk 0:00:35]}  Rh6 {[%clk 0:01:26]} 23. Qxh6 {[%clk 0:00:17]}  gxh6 {[%clk 0:01:27]} 24. Kf2 {[%clk 0:00:16]}  Qh4+ {[%clk 0:01:26]} 25. Ke3 {[%clk 0:00:15]}  Rd8 {[%clk 0:01:23]} 26. Rh1 {[%clk 0:00:10]}  exd4+ {[%clk 0:01:19]} 27. cxd4 {[%clk 0:00:10]}  Rxd4 {[%clk 0:01:16]} 28. b3 {[%clk 0:00:10]}  Qg5+ {[%clk 0:01:12]} 29. Ke2 {[%clk 0:00:10]}  Rd2+ {[%clk 0:01:12]} 30. Kf1 {[%clk 0:00:07]}  Nxh2+ {[%clk 0:00:47]} 31. Rxh2 {[%clk 0:00:04]}  Qf4+ {[%clk 0:00:46]} 32. Ke1 {[%clk 0:00:00]}  Qe3+ {[%clk 0:00:44]} 0-1


[Site "https://www.chess.com"]

[Event "Titled Tuesday Blitz October 31 Late 2023"]
[White "Sramek, Vojtech"]
[Black "Figorito, Nick"]
[WhiteFideId "358681"]
[BlackFideId "30923689"]
[WhiteElo "2301"]
[BlackElo "2441"]
[Result "0-1"]
[Round "9"]
[TimeControl "180+1"]
[Date "2023.10.31"]
[WhiteClock "0:00:00"]
[BlackClock "0:00:48"]
[Board "80"]

1. e4 {[%clk 0:03:00]}  e6 {[%clk 0:03:00]} 2. d4 {[%clk 0:03:00]}  d5 {[%clk 0:03:01]} 3. exd5 {[%clk 0:03:01]}  exd5 {[%clk 0:03:00]} 4. Nf3 {[%clk 0:03:02]}  Bd6 {[%clk 0:03:01]} 5. c4 {[%clk 0:03:01]}  Nf6 {[%clk 0:03:01]} 6. c5 {[%clk 0:02:57]}  Be7 {[%clk 0:03:01]} 7. Nc3 {[%clk 0:02:54]}  b6 {[%clk 0:03:01]} 8. cxb6 {[%clk 0:02:49]}  axb6 {[%clk 0:03:02]} 9. Bb5+ {[%clk 0:02:44]}  c6 {[%clk 0:03:00]} 10. Bd3 {[%clk 0:02:37]}  O-O {[%clk 0:02:57]} 11. O-O {[%clk 0:02:37]}  Ba6 {[%clk 0:02:56]} 12. Re1 {[%clk 0:02:32]}  Bxd3 {[%clk 0:02:52]} 13. Qxd3 {[%clk 0:02:33]}  Nbd7 {[%clk 0:02:52]} 14. Ne5 {[%clk 0:02:20]}  Nxe5 {[%clk 0:02:52]} 15. dxe5 {[%clk 0:02:19]}  Nd7 {[%clk 0:02:52]} 16. e6 {[%clk 0:02:16]}  fxe6 {[%clk 0:02:48]} 17. Rxe6 {[%clk 0:02:17]}  Nc5 {[%clk 0:02:46]} 18. Qe2 {[%clk 0:02:05]}  Nxe6 {[%clk 0:02:46]} 19. Qxe6+ {[%clk 0:02:06]}  Kh8 {[%clk 0:02:45]} 20. Qxc6 {[%clk 0:02:03]}  Bc5 {[%clk 0:02:39]} 21. Nd1 {[%clk 0:01:48]}  Qf6 {[%clk 0:02:12]} 22. Qxf6 {[%clk 0:01:37]}  Rxf6 {[%clk 0:02:13]} 23. Be3 {[%clk 0:01:33]}  d4 {[%clk 0:02:09]} 24. Bd2 {[%clk 0:01:27]}  d3 {[%clk 0:01:54]} 25. Ne3 {[%clk 0:01:22]}  Bd4 {[%clk 0:01:49]} 26. Rc1 {[%clk 0:00:48]}  Bxb2 {[%clk 0:01:42]} 27. Rc7 {[%clk 0:00:46]}  h6 {[%clk 0:01:24]} 28. Rd7 {[%clk 0:00:45]}  Rxa2 {[%clk 0:01:16]} 29. Rxd3 {[%clk 0:00:45]}  Ra1+ {[%clk 0:01:13]} 30. Nf1 {[%clk 0:00:44]}  Rd1 {[%clk 0:01:00]} 31. g3 {[%clk 0:00:21]}  Bc1 {[%clk 0:00:53]} 32. Kg2 {[%clk 0:00:12]}  Bxd2 {[%clk 0:00:52]} 33. Nxd2 {[%clk 0:00:11]}  Kh7 {[%clk 0:00:48]} 34. h4 {[%clk 0:00:08]}  b5 {[%clk 0:00:47]} 35. h5 {[%clk 0:00:00]}  b4 {[%clk 0:00:48]} 0-1


[Site "https://www.chess.com"]